[Event "31st Kavala Open-A 2022"]
[Site "Kavala"]
[Date "2022.07.26"]
[Round "1.1"]
[White "Gopal G.N."]
[Black "Bozinakis, Pavlos"]
[Result "1-0"]
[ECO "B85"]
[WhiteElo "2593"]
[BlackElo "2195"]
[Annotator "TA"]
[PlyCount "81"]
[EventDate "2022.07.27"]
[EventType "swiss"]
[EventCountry "GRE"]
[SourceTitle "playchess.com"]
[Source "ChessBase"]
[SourceQuality "1"]
[TimeControl "40/5400+30:1800+30"]

{[%evp 29,81,10,18,0,8,2,15,15,14,0,0,-14,-11,-22,-20,-64,0,-24,0,0,8,0,12,12,12,0,0,-14,-15,-30,-20,-28,0,0,177,175,430,423,404,391,416,370,1058,1055,1022,1008,1019,1007,978,855,718,674,1279,1225]} 1. e4 {[%emt 0:00:04]} c5 {[%emt 0:00:57]} 2. Nf3 {[%emt 0:00:05]} e6 {[%emt 0:00:45]} 3. d4 {[%emt 0:00:28]} cxd4 {[%emt 0:00:25]} 4. Nxd4 {[%emt 0:00:05]} Nc6 {[%emt 0:00:51]} 5. Nc3 {[%emt 0:00:37]} Qc7 {[%emt 0:00:53]} 6. Be2 {[%emt 0:05:11]} a6 {[%emt 0:01:50]} 7. O-O {[%emt 0:02:21]} Nf6 {[%emt 0:02:14]} 8. Be3 {[%emt 0:01:24]} Be7 {[%emt 0:01:39]} 9. f4 {[%emt 0:01:37]} d6 {[%emt 0:00:38]} 10. Qe1 {[%emt 0:01:02]} O-O {[%emt 0:02:31]} 11. Kh1 {[%emt 0:01:07]} Nxd4 {[%emt 0:01:58]} 12. Bxd4 {[%emt 0:00:03]} b5 {[%emt 0:00:15]} 13. Qg3 {[%emt 0:00:15]} Bb7 {[%emt 0:11:36]} 14. a3 {[%emt 0:00:17]} Bc6 {[%emt 0:05:43]} 15. Rae1 {[%emt 0:12:15]} Rad8 {[%emt 0:06:08]} 16. Bd3 {[%emt 0:19:59] B85: Sicilian Scheveningen: 6 Be2 a6, lines with early Be3.} Qd7 {[%emt 0:01:54]} 17. Nd1 {[%emt 0:15:46]} Nh5 {[%emt 0:14:06]} 18. Qg4 {[%emt 0:01:20] The position is equal.} Nf6 {[%emt 0:00:23]} 19. Qe2 $5 {[%emt 0:01:05][%mdl 4] An interesting side line.} (19. Qg5 {with more complications.} d5 20. e5 Ne4 21. Qg4) 19... Qb7 {[%emt 0:02:42]} 20. Nf2 {[%emt 0:02:20]} Nd7 {[%emt 0:01:08]} 21. Ng4 {[%emt 0:04:41]} f6 {[%emt 0:11:44] [#]} 22. Ne3 $146 {[%emt 0:00:07]} ({Predecessor:} 22. c3 e5 23. Bg1 Kh8 24. Bb1 a5 25. Ne3 exf4 26. Rxf4 Ne5 27. Nf5 Rfe8 28. Ba2 {½-½ (49) Di Berardino,D (2480)-Grieve,H (2330) Roquetas de Mar 2022}) 22... Nc5 {[%emt 0:01:13]} ({Black should try} 22... Rfe8 $15) 23. Qg4 {[%emt 0:04:35]} Rf7 {[%emt 0:04:52]} 24. b4 {[%emt 0:04:23]} Nxe4 {[%emt 0:10:59]} 25. Qxe6 {[%emt 0:01:14] [#] Nf5 is the strong threat.} Bf8 {[%emt 0:00:22]} 26. Qg4 {[%emt 0:05:33]} Re8 {[%emt 0:03:26]} 27. Re2 {[%emt 0:05:45]} Bd7 {[%emt 0:02:56]} 28. Qf3 {[%emt 0:04:02]} f5 {[%emt 0:01:49]} 29. Rfe1 {[%emt 0:02:07][%cal Oe3f5]} g6 {[%emt 0:00:53]} 30. c4 {[%emt 0:03:54]} Bg7 {[%emt 0:00:29]} (30... Bc6 $5 {[%cal Re4c5]} 31. cxb5 axb5 $15) 31. Bxg7 {[%emt 0:00:33]} Rxg7 {[%emt 0:00:15]} (31... Kxg7 $11 {and Black is okay.} 32. Nd5 bxc4 33. Bxe4 fxe4 34. Qc3+ Kg8 35. Qxc4 (35. Nf6+ Rxf6 36. Qxf6 d5 $11) 35... Bb5 36. Nf6+ Kf8) 32. Nd5 $18 {[%emt 0:00:38]} bxc4 $2 {[%emt 0:01:48]} (32... Bc6 {might work better.}) 33. Bxe4 {[%emt 0:01:11]} fxe4 {[%emt 0:00:08]} 34. Rxe4 {[%emt 0:00:35]} Rxe4 {[%emt 0:01:25]} 35. Qxe4 {[%emt 0:00:01] [#] Intending Nf6+ and mate.} Kh8 $2 {[%emt 0:00:33]} (35... Bc6) 36. Qd4 {[%emt 0:00:46] White wants to mate with Re7. White is clearly winning.} Kg8 {[%emt 0:01:32]} 37. Nf6+ {[%emt 0:00:29]} Kh8 {[%emt 0:00:29]} 38. Ne8 {[%emt 0:00:39][%csl Ge8][%cal Rd4g7]} Bb5 {[%emt 0:00:32]} 39. Nxg7 {[%emt 0:00:37]} Qxg7 {[%emt 0:00:06]} 40. Qxd6 {[%emt 0:00:00]} h5 {[%emt 0:00:00]} 41. h3 {[%emt 0:01:19] Weighted Error Value: White=0.07 (flawless) /Black=0.38} 1-0

[Event "31st Kavala Open-A 2022"]
[Site "Kavala"]
[Date "2022.07.26"]
[Round "1.2"]
[White "Rahmanidis, Petros"]
[Black "Schroeder, Jan-Christian"]
[Result "1-0"]
[ECO "C02"]
[WhiteElo "2191"]
[BlackElo "2563"]
[Annotator "TA"]
[PlyCount "65"]
[EventDate "2022.07.27"]
[EventType "swiss"]
[EventCountry "GRE"]
[SourceTitle "playchess.com"]
[Source "ChessBase"]
[SourceQuality "1"]
[TimeControl "40/5400+30:1800+30"]

{[%evp 11,65,-2,-10,-29,-25,-22,-11,-61,-3,-74,-6,-16,-10,-41,-37,-54,-20,-29,0,0,7,0,23,6,49,32,31,38,24,20,120,74,85,66,69,73,160,156,177,162,156,164,341,333,320,288,491,464,1543,1419,1189,607,870,827,29984,29983]} 1. e4 {[%emt 0:00:04]} e6 {[%emt 0:00:34]} 2. d4 {[%emt 0:00:58]} d5 {[%emt 0:00:05]} 3. e5 {[%emt 0:00:36]} c5 {[%emt 0:00:20]} 4. c3 {[%emt 0:00:42]} Nc6 {[%emt 0:00:52]} 5. Nf3 {[%emt 0:00:31]} Qb6 {[%emt 0:00:24]} 6. Bd3 {[%emt 0:02:02]} cxd4 {[%emt 0:03:57]} 7. O-O $1 {[%emt 0:02:14][%mdl 4] is recently more successful than 7.cxd4. C02: French: Advance Variation.} Bd7 {[%emt 0:00:57]} 8. Re1 {[%emt 0:02:46]} Rc8 {[%emt 0:17:52]} 9. a3 {[%emt 0:09:05]} (9. Nbd2 $11) 9... Nge7 {[%emt 0:11:39]} (9... a6 $1 $15) 10. h4 {[%emt 0:01:28] [#]} (10. b4 $11) 10... g6 $146 {[%emt 0:15:48]} ({Better is} 10... a6 $17) ({Predecessor:} 10... h6 11. b4 a6 12. Bb2 g6 13. cxd4 Nf5 14. Nc3 Be7 15. h5 Qd8 16. hxg6 fxg6 {0-1 (47) Supi,L (2603)-Languidey,S (2424) Catas Altas 2022}) 11. b4 $11 {[%emt 0:16:20]} Bg7 {[%emt 0:04:12]} 12. b5 {[%emt 0:12:17]} Na5 {[%emt 0:00:48][%csl LRb5,LRc3]} 13. Nxd4 {[%emt 0:00:08]} Nc4 {[%emt 0:04:45]} (13... O-O $5 {[%cal Rf7f6]} 14. Bg5 Nf5 15. Bxf5 exf5 $15) 14. Bf4 {[%emt 0:03:54]} Nf5 {[%emt 0:09:13]} 15. Bxf5 {[%emt 0:03:08]} gxf5 {[%emt 0:00:05]} 16. a4 {[%emt 0:01:10]} Qc5 {[%emt 0:03:37]} 17. Qh5 {[%emt 0:08:37][%cal Od4f5] Black should prevent Nxf5!} Kf8 {[%emt 0:01:01]} (17... O-O $5 {[%cal Rf7f6]}) 18. Nd2 {[%emt 0:04:26]} Nxd2 {[%emt 0:00:06]} 19. Bxd2 {[%emt 0:00:03]} h6 {[%emt 0:01:52]} 20. Re3 {[%emt 0:03:20][%cal Be1e3,Be3f3,Bf3d3][%mdl 32]} Qc4 {[%emt 0:01:58]} (20... Qe7 $11 {keeps the balance.}) 21. Bc1 {[%emt 0:04:49]} (21. g4 $142) 21... Rh7 {[%emt 0:06:46]} 22. Ba3+ {[%emt 0:06:33][%cal Bc1a3,Ba3e7,Be7f6][%mdl 32]} Kg8 {[%emt 0:00:04]} 23. Be7 {[%emt 0:00:41]} Re8 {[%emt 0:03:36] [#]} (23... Qc7 $142) 24. Bf6 $1 $16 {[%emt 0:02:43] 0x0.001e3abbe2dbdp-1022s more active pieces.} f4 {[%emt 0:05:55] Prevents Rg3.} 25. Rf3 {[%emt 0:06:45]} Bxf6 {[%emt 0:00:32]} 26. exf6 {[%emt 0:00:12]} e5 $2 {[%emt 0:02:56]} (26... Qc7 {was worth a try.} 27. Rd3 (27. Qg4+ Kf8 $11) 27... e5) 27. Nf5 $18 {[%emt 0:00:26]} Bxf5 {[%emt 0:01:20]} 28. Qxf5 {[%emt 0:00:02]} Re6 $2 {[%emt 0:00:21]} (28... Qc8 {keeps fighting.} 29. Qxc8 Rxc8) 29. Rd1 {[%emt 0:02:05] [#] And now Rfd3 would win.} b6 {[%emt 0:02:46]} (29... Re8 $142 30. Qd7 Qc8 31. Qxc8 Rxc8 32. Rxd5 Rh8 33. Rxe5 Rc4) 30. Rfd3 {[%emt 0:01:31]} d4 {[%emt 0:00:13]} 31. f3 {[%emt 0:02:53][%cal Rc3d4]} h5 {[%emt 0:00:49]} 32. cxd4 {[%emt 0:00:50][%cal Bc3d4,Bd4e5][%mdl 32]} Rh6 {[%emt 0:00:34]} 33. dxe5 {[%emt 0:00:31] Weighted Error Value: White=0.36/Black=0.67} 1-0

[Event "31st Kavala Open-A 2022"]
[Site "Kavala"]
[Date "2022.07.26"]
[Round "1.4"]
[White "Stefanou, Dimitrios"]
[Black "Yilmazyerli, Mert"]
[Result "0-1"]
[ECO "A37"]
[WhiteElo "2184"]
[BlackElo "2520"]
[Annotator "TA"]
[PlyCount "104"]
[EventDate "2022.07.27"]
[EventType "swiss"]
[EventCountry "GRE"]
[SourceTitle "playchess.com"]
[Source "ChessBase"]
[SourceQuality "1"]
[TimeControl "40/5400+30:1800+30"]

{[%evp 11,104,-3,0,-14,-9,-12,-4,-7,-8,-14,0,-2,-9,-2,-11,-29,-7,-78,-74,-106,-103,-105,-94,-105,-108,-106,-97,-108,-107,-121,-60,-68,-53,-53,-70,-96,-98,-122,-69,-66,-34,-37,-12,-12,0,0,0,0,0,0,54,0,0,0,0,-25,-39,-49,-17,-75,0,0,0,0,0,0,0,0,0,0,0,0,0,0,0,0,0,0,0,-407,-397,-391,-375,-360,-361,-2603,-1654,-29977,-29978,-29978,-29979,-29979,-29980,-29976,-29968]} 1. Nf3 {[%emt 0:00:06]} c5 {[%emt 0:00:30]} 2. c4 {[%emt 0:00:25]} g6 {[%emt 0:01:15]} 3. Nc3 {[%emt 0:01:41]} Bg7 {[%emt 0:00:12]} 4. g3 {[%emt 0:08:37]} Nc6 {[%emt 0:00:17]} 5. Bg2 {[%emt 0:00:07]} d6 {[%emt 0:00:05]} 6. d3 {[%emt 0:07:02]} e6 {[%emt 0:00:26]} 7. O-O {[%emt 0:00:48] 7.h4 is more fashionable. A37: Symmetrical English vs ...g6: 4 Bg2 Bg7 5 Nf3.} Nge7 {[%emt 0:00:12]} 8. Bg5 {[%emt 0:01:41]} h6 {[%emt 0:00:56]} 9. Bd2 {[%emt 0:01:44] The position is equal.} b6 {[%emt 0:01:47]} 10. a3 {[%emt 0:03:22]} Bb7 {[%emt 0:01:36]} 11. Rb1 {[%emt 0:00:44]} (11. b4 {with more complications.} cxb4 12. axb4 Nxb4 13. Nb5) 11... Qd7 {[%emt 0:00:40]} 12. b4 {[%emt 0:05:21]} O-O {[%emt 0:03:21]} 13. Qc1 {[%emt 0:03:27]} Kh7 {[%emt 0:00:50]} 14. h4 {[%emt 0:10:36]} (14. e3 $11 {keeps the balance.}) 14... Nd4 $17 {[%emt 0:03:29]} 15. Nxd4 {[%emt 0:03:29]} cxd4 {[%emt 0:00:20]} 16. Nd1 {[%emt 0:01:14]} Bxg2 {[%emt 0:02:08]} 17. Kxg2 {[%emt 0:00:07][%cal Oa3a4] [#]} e5 $146 {[%emt 0:03:05]} ({Predecessor:} 17... b5 18. e4 bxc4 19. Qxc4 Rac8 20. Qb3 d5 21. f3 dxe4 22. fxe4 Nc6 23. Nf2 Ne5 {1-0 (57) Wadsworth,M (2364)-Yeletsky,I (2406) Chess.com INT 2018}) 18. f3 {[%emt 0:04:58]} f5 {[%emt 0:02:06]} 19. Nf2 {[%emt 0:00:24]} Rac8 {[%emt 0:03:06]} 20. Qc2 {[%emt 0:08:45]} Nd5 {[%emt 0:03:51]} (20... d5 $17 {[%cal Oe5e4]} 21. b5 dxc4 22. dxc4 Rc7) 21. Qb3 $15 {[%emt 0:01:56]} Nf6 {[%emt 0:01:48] Black is more active.} 22. Rbc1 {[%emt 0:04:50]} Qb7 {[%emt 0:03:48]} 23. b5 {[%emt 0:00:43]} e4 {[%emt 0:03:45] Threatens to win with ...e3.} 24. Bb4 {[%emt 0:02:13] [#]} exf3+ {[%emt 0:09:11]} (24... Ng4 $1 $17 {[%mdl 512]} 25. dxe4 Ne3+ 26. Kh2 Qe7) 25. exf3 {[%emt 0:00:06]} Ng4 {[%emt 0:00:05] Strongly threatening ...Ne3+.} 26. Bd2 {[%emt 0:11:59]} ({Don't go for} 26. Nxg4 $2 fxg4 27. Kg1 gxf3 28. Bxd6 Rf7 $19) 26... Rfe8 {[%emt 0:11:53]} (26... Be5 $5 {[%cal Rg4e3]}) 27. Rce1 {[%emt 0:01:30] Against Re2} Re5 {[%emt 0:09:54]} 28. Rxe5 {[%emt 0:06:29]} Bxe5 {[%emt 0:09:26]} 29. Nxg4 {[%emt 0:01:39]} fxg4 {[%emt 0:00:22]} 30. Qd1 {[%emt 0:00:08]} d5 {[%emt 0:03:02]} (30... Rf8 $11) 31. Qe2 {[%emt 0:00:54]} ({Better is} 31. c5 $1 $14 bxc5 32. f4) 31... Bg7 $11 {[%emt 0:00:32]} 32. Qe6 {[%emt 0:03:54]} dxc4 {[%emt 0:06:38]} 33. dxc4 {[%emt 0:00:12]} (33. h5 $5) 33... h5 {[%emt 0:01:02]} 34. Bb4 {[%emt 0:02:02]} Rd8 {[%emt 0:02:24]} 35. Qe4 {[%emt 0:01:37]} (35. Bd2 $11 {remains equal.}) 35... Qc8 {[%emt 0:07:02]} (35... Qxe4 $17 36. fxe4 Rd7) 36. fxg4 {[%emt 0:01:14]} Re8 {[%emt 0:00:02]} 37. Qc6 {[%emt 0:00:52] And now Rf7 would win.} Re2+ {[%emt 0:00:38]} (37... hxg4 $2 38. Rf7 $18) 38. Rf2 $1 {[%emt 0:00:13]} Qxg4 {[%emt 0:00:15]} 39. Qf3 {[%emt 0:00:44]} Re3 {[%emt 0:05:03]} 40. Qxg4 {[%emt 0:00:27]} hxg4 {[%emt 0:00:02][%cal Bh5g4,Bg4g3][%mdl 4128] Endgame KRB-KRB} 41. Rf7 {[%emt 0:31:16]} Kg8 {[%emt 0:31:02] Inhibits Bf8.} 42. Rxa7 {[%emt 0:00:00]} Be5 {[%emt 0:00:00]} 43. Rd7 {[%emt 0:00:00]} Rxg3+ {[%emt 0:00:00]} 44. Kf2 {[%emt 0:00:00]} Rb3 {[%emt 0:00:00] ...Bf4 is the strong threat.} 45. Rd5 $2 {[%emt 0:00:00][%mdl 8192]} (45. Bd6 $11 {and White stays safe.} g3+ 46. Kf1 Rb1+ 47. Kg2 Rb2+ 48. Kg1 Rb1+ 49. Kg2 Rb2+ 50. Kg1 Rb1+ 51. Kg2) 45... g3+ $19 {[%emt 0:00:00]} 46. Kf1 {[%emt 0:00:00]} Rb1+ {[%emt 0:00:00]} 47. Be1 {[%emt 0:00:00]} ({Much worse is} 47. Kg2 Rb2+ 48. Kh1 Bf4 49. Rd8+ Kg7 $19) 47... Bf6 {[%emt 0:00:00]} ({But not} 47... g2+ $2 48. Kxg2 Rxe1 49. c5 bxc5 50. b6 $19) 48. Rd6 $2 {[%emt 0:00:00]} (48. Ke2 Bxh4 49. Bxg3 Bxg3 50. Rxd4) 48... Bxh4 {[%emt 0:00:00] White must now prevent ...Kf7.} 49. Rxg6+ {[%emt 0:00:00]} Kf7 {[%emt 0:00:00] Black mates.} 50. Rg4 {[%emt 0:00:00] [#]} d3 $1 {[%emt 0:00:00][%cal Bd4d3,Bd3d2][%mdl 32]} 51. Kg2 {[%emt 0:00:00]} Rxe1 {[%emt 0:00:00]} 52. Rxh4 {[%emt 0:00:00]} d2 {[%emt 0:00:00] Weighted Error Value: White=0.43/Black=0.09 (flawless)} 0-1

[Event "31st Kavala Open-A 2022"]
[Site "Kavala"]
[Date "2022.07.26"]
[Round "1.5"]
[White "Gagare, Shardul"]
[Black "Magalakis, Stefanos"]
[Result "1/2-1/2"]
[ECO "A13"]
[WhiteElo "2514"]
[BlackElo "2181"]
[Annotator "TA"]
[PlyCount "86"]
[EventDate "2022.07.27"]
[EventType "swiss"]
[EventCountry "GRE"]
[SourceTitle "playchess.com"]
[Source "ChessBase"]
[SourceQuality "1"]
[TimeControl "40/5400+30:1800+30"]

{[%evp 10,86,14,8,22,-5,0,8,18,8,12,11,31,31,14,7,14,0,2,0,11,0,8,0,6,7,7,4,14,10,34,43,41,35,40,0,0,0,0,0,0,-23,0,-54,-54,-54,-54,-54,-54,-54,-56,-54,-54,-54,-56,-103,-75,-108,-108,-108,-75,-75,-75,-75,-75,-75,-68,-75,-75,-75,-75,-75,0,-75,-75,-75,-75,-75,-75]} 1. c4 {[%emt 0:00:26]} e6 {[%emt 0:00:37]} 2. Nf3 {[%emt 0:01:14]} Nf6 {[%emt 0:00:30]} 3. g3 {[%emt 0:02:00]} d5 {[%emt 0:01:58]} 4. Bg2 {[%emt 0:01:30]} Bd6 {[%emt 0:02:28]} 5. b3 {[%emt 0:05:42]} O-O {[%emt 0:04:17]} 6. Bb2 {[%emt 0:01:38]} b6 {[%emt 0:01:28] 6...Nbd7 is vanishing. A13: English Opening: 1...e6.} 7. Qc2 {[%emt 0:08:33]} Bb7 {[%emt 0:04:41]} 8. O-O {[%emt 0:02:23]} Nbd7 {[%emt 0:03:56] The position is equal.} 9. Nc3 {[%emt 0:00:45]} c5 {[%emt 0:07:30]} 10. e3 {[%emt 0:04:58] Prevents d4.} a6 {[%emt 0:05:52] [#]} 11. cxd5 $146 {[%emt 0:06:26]} ({Predecessor:} 11. Rfd1 Rc8 12. d3 Qe7 13. Qe2 Ne8 14. Nh4 g5 15. cxd5 gxh4 16. dxe6 Ne5 17. f4 {0-1 (23) Slowik,M (1998)-Heyden,J (1918) Germany 2007}) 11... Nxd5 {[%emt 0:01:22]} 12. Rac1 {[%emt 0:26:35]} Rc8 {[%emt 0:15:17]} 13. Rfd1 {[%emt 0:02:12]} Be7 {[%emt 0:06:16]} ({Don't take} 13... Nb4 14. Qb1 $14) 14. Qb1 {[%emt 0:04:32]} Nxc3 {[%emt 0:11:02]} 15. Bxc3 {[%emt 0:04:38][%cal Of3g5]} Rc7 {[%emt 0:00:25]} 16. e4 {[%emt 0:09:29]} Qa8 {[%emt 0:06:25]} 17. d3 {[%emt 0:00:14]} Bf6 {[%emt 0:03:34]} 18. Bxf6 {[%emt 0:02:08]} Nxf6 {[%emt 0:00:07]} 19. b4 {[%emt 0:02:28]} c4 {[%emt 0:10:29]} 20. Ne5 {[%emt 0:00:55]} ({Reject} 20. Rxc4 Rxc4 21. dxc4 Bxe4 $11) (20. dxc4 Bxe4 21. Qb3 a5 $15) 20... b5 {[%emt 0:00:10]} 21. dxc4 {[%emt 0:02:03]} (21. Qb2 {keeps more tension.} Rfc8 22. dxc4 Bxe4 23. f3) 21... bxc4 {[%emt 0:00:16][%cal Rb7e4]} 22. Rxc4 {[%emt 0:00:59]} Rxc4 {[%emt 0:00:09]} 23. Nxc4 {[%emt 0:00:05] Threatens to win with Nd6.} Bxe4 {[%emt 0:00:10]} 24. Bxe4 {[%emt 0:07:03]} Nxe4 {[%emt 0:00:05]} 25. Qc1 {[%emt 0:00:08] Prevents Nc3.} h6 {[%emt 0:01:24]} 26. h4 {[%emt 0:02:24]} ({White should play} 26. Qe3 $11) 26... Rc8 $15 {[%emt 0:02:28] Strongly threatening ...Qb8.} 27. Qc2 {[%emt 0:00:13]} Qc6 {[%emt 0:03:39]} 28. Rd4 {[%emt 0:01:21] [#]} Nd6 {[%emt 0:00:32][%cal Rd6c4]} 29. Ne3 {[%emt 0:00:09][%cal Od4d6]} (29. Na3 Qxc2) 29... Qxc2 {[%emt 0:00:05]} 30. Nxc2 {[%emt 0:00:03]} Rxc2 {[%emt 0:00:08]} 31. Rxd6 {[%emt 0:00:03]} Rxa2 {[%emt 0:00:06][%mdl 4096] Endgame KR-KR} 32. Rd7 {[%emt 0:01:22]} (32. Rd8+ $15 Kh7 33. h5) 32... Rb2 {[%emt 0:00:26]} 33. Ra7 {[%emt 0:00:09]} Rxb4 {[%emt 0:00:06]} 34. Rxa6 {[%emt 0:00:05]} h5 {[%emt 0:00:35]} 35. Ra5 {[%emt 0:00:25]} g6 {[%emt 0:00:06]} 36. Ra7 {[%emt 0:01:15]} Kg7 {[%emt 0:00:10]} 37. Kg2 {[%emt 0:00:08]} Rb3 {[%emt 0:01:13]} 38. Rc7 {[%emt 0:00:27]} Kf6 {[%emt 0:00:32]} 39. Ra7 {[%emt 0:01:19]} Rb8 {[%emt 0:00:41]} 40. Kf3 {[%emt 0:01:24]} Rb3+ {[%emt 0:01:21]} 41. Kg2 $1 {[%emt 0:30:39]} Rb5 {[%emt 0:30:54] Black is better.} 42. Kf3 {[%emt 0:00:00]} Rf5+ {[%emt 0:00:00]} 43. Ke3 {[%emt 0:00:00]} Re5+ {[%emt 0:00:00] Weighted Error Value: White=0.09 (flawless) /Black=0.08 (flawless)} 1/2-1/2

[Event "31st Kavala Open-A 2022"]
[Site "Kavala"]
[Date "2022.07.26"]
[Round "1.6"]
[White "Skaperdas, Kostantinos"]
[Black "Santiago, Yago De Moura"]
[Result "1-0"]
[ECO "C02"]
[WhiteElo "2177"]
[BlackElo "2513"]
[Annotator "TA"]
[PlyCount "65"]
[EventDate "2022.07.27"]
[EventType "swiss"]
[EventCountry "GRE"]
[SourceTitle "playchess.com"]
[Source "ChessBase"]
[SourceQuality "1"]
[TimeControl "40/5400+30:1800+30"]

{[%evp 16,65,32,8,12,-91,47,52,114,139,318,317,322,329,296,287,302,270,375,252,387,304,285,289,301,288,586,600,587,563,538,396,441,416,568,450,561,406,571,458,762,748,1022,1043,1050,1021,1015,981,2404,2207,1825,1614]} 1. e4 {[%emt 0:00:09]} e6 {[%emt 0:00:09]} 2. d4 {[%emt 0:00:24]} d5 {[%emt 0:00:08]} 3. e5 {[%emt 0:00:50]} c5 {[%emt 0:00:10]} 4. c3 {[%emt 0:00:08]} Nc6 {[%emt 0:00:56]} 5. Nf3 {[%emt 0:00:16]} Qb6 {[%emt 0:00:57]} 6. Bd3 {[%emt 0:01:29]} Bd7 {[%emt 0:01:04]} 7. dxc5 {[%emt 0:04:19]} Bxc5 {[%emt 0:00:42]} 8. O-O {[%emt 0:00:05]} a5 {[%emt 0:07:46]} 9. Nbd2 {[%emt 0:02:20]} f6 $1 {[%emt 0:08:22] C02: French: Advance Variation.} 10. Rb1 {[%emt 0:20:07] [#]} (10. Qe2 $11 {keeps the balance.}) 10... Qc7 $146 {[%emt 0:05:15]} (10... Nxe5 11. Nxe5 fxe5 12. Qh5+ Kf8 13. Qxe5 $14) (10... fxe5 $17 {Threatens to win with ...Nf6.} 11. Ng5 Nf6) ({Predecessor:} 10... fxe5 11. b4 axb4 12. cxb4 Be7 13. b5 Nb4 14. Be2 e4 15. Ne5 Nf6 16. a3 Nd3 17. Nxd3 exd3 18. Bxd3 {½-½ (40) Cevizci,Y (2144)-Ozkan,T (2357) Ankara 2022}) 11. Nb3 $14 {[%emt 0:06:45]} Be7 {[%emt 0:09:07] [#]} (11... Bb6 $14) 12. Bf4 $1 $16 {[%emt 0:05:21][%cal Oe5f6] And now exf6! would win.} O-O-O $2 {[%emt 0:38:39] A mistake that costs the game.} (12... Nh6 $16 {was necessary.}) 13. exf6 $18 {[%emt 0:03:20]} Qxf4 {[%emt 0:00:10]} 14. fxg7 {[%emt 0:00:06]} (14. fxe7 Ngxe7 15. Bb5 Rhf8 $16) 14... Nf6 {[%emt 0:00:27]} 15. gxh8=Q {[%emt 0:00:03]} (15. gxh8=B Rxh8 16. Nbd4 Rg8 $18) 15... Rxh8 {[%emt 0:00:04]} 16. Bb5 {[%emt 0:06:16]} e5 {[%emt 0:02:13]} 17. g3 {[%emt 0:02:39]} Qf5 {[%emt 0:00:29]} (17... Rg8 $142 18. Re1 Bd6) 18. Re1 {[%emt 0:10:44]} Bd6 {[%emt 0:00:56]} 19. Bxc6 {[%emt 0:05:05]} Bxc6 {[%emt 0:01:02]} 20. Nxa5 {[%emt 0:01:39]} e4 $2 {[%emt 0:00:41]} (20... Ng4 21. Rf1 Bc5) 21. Nxc6 {[%emt 0:04:46]} bxc6 {[%emt 0:00:19]} 22. Nd4 {[%emt 0:11:15][%csl LRc6,LRf5]} Qh3 {[%emt 0:00:55]} 23. Qe2 {[%emt 0:00:17] [#] Qa6+ is the strong threat.} Kd7 {[%emt 0:02:06]} 24. Qf1 {[%emt 0:02:32]} ({But not} 24. Qa6 Rc8 25. Re2 (25. Qb7+ Rc7 $11) 25... h5 $18) 24... Qh5 {[%emt 0:00:46]} 25. f3 {[%emt 0:03:28][%cal Bf2f3,Bf3e4,Be4e5][%mdl 32] Inhibits Ng4.} Rg8 {[%emt 0:00:46][%cal Od6g3] Strongly threatening ...Bxg3!} 26. Kg2 {[%emt 0:02:26]} Qe5 {[%emt 0:01:40]} (26... Qg6 $142 27. Kh1 (27. Qa6 Bxg3 28. Kf1 Bxe1 $11) 27... exf3) 27. Qf2 {[%emt 0:04:18] White is clearly winning.} Nh5 {[%emt 0:02:19]} (27... Rf8 $142 28. Qf1 Qh5) 28. fxe4 {[%emt 0:00:32] Hoping for Qf7+.} Nf4+ {[%emt 0:02:42]} 29. Kh1 {[%emt 0:00:17]} Rf8 {[%emt 0:00:06]} 30. gxf4 {[%emt 0:02:35]} Rxf4 {[%emt 0:00:04]} 31. Qg3 {[%emt 0:00:44] aiming for Qh3+.} Qh5 {[%emt 0:01:05] Against Qh3+} 32. e5 {[%emt 0:00:14]} Rg4 {[%emt 0:00:20]} 33. Qf3 {[%emt 0:00:27] Weighted Error Value: White=0.51/Black=0.93} 1-0